[Event "Titled Tuesday Blitz June 27 Early 2023"]
[White "Nakamura, Hikaru"]
[Black "Serban, Cristian-Stefan"]
[WhiteFideId "2016192"]
[BlackFideId "1241443"]
[WhiteElo "3252"]
[BlackElo "2556"]
[Result "1-0"]
[Round "1"]
[TimeControl "180+2"]
[Date "2023.06.27"]
[WhiteClock "0:01:58"]
[BlackClock "0:00:00"]
[Board "1"]

1. e4 {[%clk 0:02:53]}  g6 {[%clk 0:02:59]} 2. d4 {[%clk 0:02:52]}  Bg7 {[%clk 0:02:59]} 3. Nc3 {[%clk 0:02:53]}  a6 {[%clk 0:02:59]} 4. h4 {[%clk 0:02:50]}  h5 {[%clk 0:02:58]} 5. Nh3 {[%clk 0:02:50]}  c6 {[%clk 0:02:52]} 6. Bc4 {[%clk 0:02:43]}  e6 {[%clk 0:02:45]} 7. e5 {[%clk 0:02:39]}  Ne7 {[%clk 0:02:37]} 8. Ne4 {[%clk 0:02:37]}  Nf5 {[%clk 0:02:37]} 9. Bg5 {[%clk 0:02:37]}  Qb6 {[%clk 0:02:29]} 10. c3 {[%clk 0:02:36]}  Qc7 {[%clk 0:02:18]} 11. Nf6+ {[%clk 0:02:30]}  Bxf6 {[%clk 0:02:15]} 12. Bxf6 {[%clk 0:02:30]}  Rg8 {[%clk 0:02:04]} 13. Bd3 {[%clk 0:02:30]}  d5 {[%clk 0:02:00]} 14. exd6 {[%clk 0:02:22]}  Qxd6 {[%clk 0:01:55]} 15. Bxf5 {[%clk 0:02:17]}  exf5 {[%clk 0:01:52]} 16. Be5 {[%clk 0:02:16]}  Qe7 {[%clk 0:01:31]} 17. O-O {[%clk 0:02:15]}  Be6 {[%clk 0:01:28]} 18. Re1 {[%clk 0:02:15]}  Nd7 {[%clk 0:01:24]} 19. Bg3 {[%clk 0:02:14]}  O-O-O {[%clk 0:00:44]} 20. Qd2 {[%clk 0:02:13]}  Nf8 {[%clk 0:00:37]} 21. Qf4 {[%clk 0:02:05]}  Kd7 {[%clk 0:00:26]} 22. Ng5 {[%clk 0:02:01]}  Ke8 {[%clk 0:00:16]} 23. Re2 {[%clk 0:02:00]}  Qd7 {[%clk 0:00:09]} 24. Rae1 {[%clk 0:01:59]}  Qd5 {[%clk 0:00:04]} 25. b3 {[%clk 0:01:59]}  b5 {[%clk 0:00:00]} 26. Re5 {[%clk 0:01:58]} 1-0


[Site "https://www.chess.com"]

[Event "Titled Tuesday Blitz June 27 Early 2023"]
[White "Skuhala, Jernej"]
[Black "Firouzja, Alireza"]
[WhiteFideId "14605651"]
[BlackFideId "12573981"]
[WhiteElo "2556"]
[BlackElo "3127"]
[Result "1/2-1/2"]
[Round "1"]
[TimeControl "180+2"]
[Date "2023.06.27"]
[WhiteClock "0:00:21"]
[BlackClock "0:00:04"]
[Board "2"]

1. e4 {[%clk 0:03:00]}  e6 {[%clk 0:02:57]} 2. Nf3 {[%clk 0:02:59]}  b6 {[%clk 0:02:58]} 3. Nc3 {[%clk 0:03:00]}  Bb7 {[%clk 0:02:58]} 4. d4 {[%clk 0:03:01]}  Bb4 {[%clk 0:02:58]} 5. Bd3 {[%clk 0:03:01]}  d5 {[%clk 0:02:58]} 6. exd5 {[%clk 0:03:01]}  Qxd5 {[%clk 0:02:55]} 7. O-O {[%clk 0:03:01]}  Bxc3 {[%clk 0:02:53]} 8. bxc3 {[%clk 0:03:02]}  Nd7 {[%clk 0:02:53]} 9. Re1 {[%clk 0:03:02]}  Ngf6 {[%clk 0:02:52]} 10. c4 {[%clk 0:02:51]}  Qh5 {[%clk 0:02:52]} 11. Ne5 {[%clk 0:02:47]}  Qxd1 {[%clk 0:02:46]} 12. Rxd1 {[%clk 0:02:48]}  Nxe5 {[%clk 0:02:46]} 13. dxe5 {[%clk 0:02:49]}  Nd7 {[%clk 0:02:45]} 14. f4 {[%clk 0:02:46]}  O-O-O {[%clk 0:02:45]} 15. Ba3 {[%clk 0:02:40]}  h6 {[%clk 0:02:37]} 16. Kf2 {[%clk 0:02:40]}  Bc6 {[%clk 0:02:25]} 17. g3 {[%clk 0:02:37]}  Kb7 {[%clk 0:02:20]} 18. Rd2 {[%clk 0:02:32]}  f6 {[%clk 0:02:05]} 19. Be7 {[%clk 0:02:15]}  Rde8 {[%clk 0:02:04]} 20. exf6 {[%clk 0:02:16]}  gxf6 {[%clk 0:01:54]} 21. Bb4 {[%clk 0:02:12]}  f5 {[%clk 0:01:54]} 22. Bc3 {[%clk 0:02:08]}  Rhg8 {[%clk 0:01:51]} 23. Re1 {[%clk 0:02:08]}  Nc5 {[%clk 0:01:50]} 24. Bd4 {[%clk 0:01:57]}  Ne4+ {[%clk 0:01:50]} 25. Bxe4 {[%clk 0:01:58]}  Bxe4 {[%clk 0:01:51]} 26. Bf6 {[%clk 0:01:58]}  Rg6 {[%clk 0:01:48]} 27. Be5 {[%clk 0:01:57]}  Bc6 {[%clk 0:01:41]} 28. Red1 {[%clk 0:01:56]}  Rgg8 {[%clk 0:01:41]} 29. c3 {[%clk 0:01:51]}  h5 {[%clk 0:01:40]} 30. Bf6 {[%clk 0:01:51]}  Rgf8 {[%clk 0:01:40]} 31. Be5 {[%clk 0:01:50]}  Rg8 {[%clk 0:01:37]} 32. Bf6 {[%clk 0:01:50]}  Ref8 {[%clk 0:01:38]} 33. Be5 {[%clk 0:01:41]}  h4 {[%clk 0:01:36]} 34. Rg1 {[%clk 0:01:41]}  hxg3+ {[%clk 0:01:06]} 35. Rxg3 {[%clk 0:01:42]}  Rxg3 {[%clk 0:01:06]} 36. Kxg3 {[%clk 0:01:32]}  Rg8+ {[%clk 0:01:06]} 37. Kf2 {[%clk 0:01:27]}  Rg2+ {[%clk 0:01:06]} 38. Ke3 {[%clk 0:01:27]}  Rg1 {[%clk 0:01:07]} 39. Rd8 {[%clk 0:01:22]}  Rg2 {[%clk 0:01:01]} 40. Rh8 {[%clk 0:01:18]}  Rxa2 {[%clk 0:01:01]} 41. h4 {[%clk 0:01:19]}  a5 {[%clk 0:00:58]} 42. Rh7 {[%clk 0:01:18]}  Be4 {[%clk 0:00:52]} 43. Rxc7+ {[%clk 0:01:18]}  Ka6 {[%clk 0:00:52]} 44. Rd7 {[%clk 0:01:15]}  Rh2 {[%clk 0:00:46]} 45. Rd6 {[%clk 0:01:07]}  a4 {[%clk 0:00:37]} 46. c5 {[%clk 0:01:07]}  a3 {[%clk 0:00:37]} 47. Rxb6+ {[%clk 0:01:05]}  Ka5 {[%clk 0:00:32]} 48. Bc7 {[%clk 0:00:54]}  a2 {[%clk 0:00:28]} 49. Rb4+ {[%clk 0:00:53]}  Ka6 {[%clk 0:00:27]} 50. Ra4+ {[%clk 0:00:51]}  Kb7 {[%clk 0:00:27]} 51. Be5 {[%clk 0:00:49]}  Bc6 {[%clk 0:00:23]} 52. Ra3 {[%clk 0:00:47]}  Bd5 {[%clk 0:00:23]} 53. Ra5 {[%clk 0:00:24]}  Bc4 {[%clk 0:00:17]} 54. Kd4 {[%clk 0:00:21]}  Rh1 {[%clk 0:00:15]} 55. Kxc4 {[%clk 0:00:21]}  a1=Q {[%clk 0:00:15]} 56. Rxa1 {[%clk 0:00:22]}  Rxa1 {[%clk 0:00:16]} 57. Bd6 {[%clk 0:00:21]}  Kc6 {[%clk 0:00:15]} 58. Kd4 {[%clk 0:00:21]}  Re1 {[%clk 0:00:15]} 59. Kd3 {[%clk 0:00:19]}  Kd5 {[%clk 0:00:14]} 60. c4+ {[%clk 0:00:20]}  Kc6 {[%clk 0:00:15]} 61. Kd4 {[%clk 0:00:20]}  Kd7 {[%clk 0:00:12]} 62. Kd3 {[%clk 0:00:20]}  Rh1 {[%clk 0:00:12]} 63. Kd4 {[%clk 0:00:20]}  Rxh4 {[%clk 0:00:12]} 64. Ke5 {[%clk 0:00:21]}  Rh6 {[%clk 0:00:08]} 65. Bf8 {[%clk 0:00:20]}  Rg6 {[%clk 0:00:08]} 66. Bd6 {[%clk 0:00:20]}  Kc6 {[%clk 0:00:05]} 67. Bf8 {[%clk 0:00:21]}  Kd7 {[%clk 0:00:05]} 68. Bd6 {[%clk 0:00:21]}  Rg2 {[%clk 0:00:05]} 69. Kf6 {[%clk 0:00:21]}  Re2 {[%clk 0:00:05]} 70. Be5 {[%clk 0:00:21]}  Rh2 {[%clk 0:00:03]} 71. c6+ {[%clk 0:00:21]}  Kxc6 {[%clk 0:00:04]} 72. Kxe6 {[%clk 0:00:22]}  Rh5 {[%clk 0:00:04]} 73. Kf6 {[%clk 0:00:22]}  Kc5 {[%clk 0:00:04]} 74. Kg6 {[%clk 0:00:22]}  Rh1 {[%clk 0:00:04]} 75. Kxf5 {[%clk 0:00:23]}  Kxc4 {[%clk 0:00:05]} 76. Ke4 {[%clk 0:00:24]}  Re1+ {[%clk 0:00:04]} 77. Kf5 {[%clk 0:00:24]}  Kd5 {[%clk 0:00:05]} 78. Bf6 {[%clk 0:00:24]}  Re8 {[%clk 0:00:05]} 79. Be5 {[%clk 0:00:25]}  Rf8+ {[%clk 0:00:05]} 80. Bf6 {[%clk 0:00:25]}  Kd6 {[%clk 0:00:05]} 81. Kg6 {[%clk 0:00:23]}  Kd7 {[%clk 0:00:04]} 82. f5 {[%clk 0:00:23]}  Ke8 {[%clk 0:00:04]} 83. Bg7 {[%clk 0:00:23]}  Rf7 {[%clk 0:00:04]} 84. Bf6 {[%clk 0:00:21]}  Kf8 {[%clk 0:00:05]} 85. Bg5 {[%clk 0:00:21]}  Rg7+ {[%clk 0:00:04]} 86. Kf6 {[%clk 0:00:20]}  Rf7+ {[%clk 0:00:05]} 87. Kg6 {[%clk 0:00:21]}  Kg8 {[%clk 0:00:05]} 88. Bh6 {[%clk 0:00:21]}  Ra7 {[%clk 0:00:05]} 89. f6 {[%clk 0:00:21]}  Ra6 {[%clk 0:00:05]} 90. Bg7 {[%clk 0:00:20]}  Rc6 {[%clk 0:00:04]} 91. Bh6 {[%clk 0:00:21]}  Rxf6+ {[%clk 0:00:04]} 92. Kxf6 {[%clk 0:00:21]} 1/2-1/2


[Site "https://www.chess.com"]

[Event "Titled Tuesday Blitz June 27 Early 2023"]
[White "So, Wesley"]
[Black "Salman, Pavel"]
[WhiteFideId "5202213"]
[BlackFideId "24153753"]
[WhiteElo "3102"]
[BlackElo "2554"]
[Result "1-0"]
[Round "1"]
[TimeControl "180+2"]
[Date "2023.06.27"]
[WhiteClock "0:00:27"]
[BlackClock "0:00:14"]
[Board "3"]

1. d4 {[%clk 0:02:58]}  Nf6 {[%clk 0:02:59]} 2. c4 {[%clk 0:02:58]}  c5 {[%clk 0:03:00]} 3. d5 {[%clk 0:02:58]}  b5 {[%clk 0:03:00]} 4. cxb5 {[%clk 0:02:58]}  a6 {[%clk 0:03:01]} 5. e3 {[%clk 0:02:56]}  axb5 {[%clk 0:03:00]} 6. Bxb5 {[%clk 0:02:57]}  Qa5+ {[%clk 0:03:00]} 7. Nc3 {[%clk 0:02:56]}  Bb7 {[%clk 0:03:01]} 8. Bd2 {[%clk 0:02:55]}  Qb6 {[%clk 0:03:01]} 9. Nf3 {[%clk 0:02:53]}  Nxd5 {[%clk 0:03:01]} 10. a4 {[%clk 0:02:54]}  e6 {[%clk 0:03:00]} 11. e4 {[%clk 0:02:52]}  Nxc3 {[%clk 0:02:55]} 12. Bxc3 {[%clk 0:02:53]}  Be7 {[%clk 0:02:47]} 13. O-O {[%clk 0:02:39]}  O-O {[%clk 0:02:46]} 14. Re1 {[%clk 0:02:39]}  Bc6 {[%clk 0:02:44]} 15. Bxc6 {[%clk 0:02:38]}  Qxc6 {[%clk 0:02:43]} 16. Ne5 {[%clk 0:02:35]}  Qc7 {[%clk 0:02:33]} 17. Re3 {[%clk 0:02:25]}  f6 {[%clk 0:02:28]} 18. Nc4 {[%clk 0:02:16]}  Nc6 {[%clk 0:02:27]} 19. Rh3 {[%clk 0:02:04]}  g6 {[%clk 0:02:10]} 20. Qd2 {[%clk 0:01:40]}  Rf7 {[%clk 0:02:08]} 21. Rd3 {[%clk 0:01:38]}  Bf8 {[%clk 0:02:04]} 22. h4 {[%clk 0:01:35]}  Ne5 {[%clk 0:01:49]} 23. Bxe5 {[%clk 0:01:30]}  fxe5 {[%clk 0:01:50]} 24. a5 {[%clk 0:01:29]}  Rf4 {[%clk 0:01:45]} 25. Rxd7 {[%clk 0:01:28]}  Qc6 {[%clk 0:01:42]} 26. f3 {[%clk 0:01:22]}  Rxh4 {[%clk 0:01:30]} 27. Nxe5 {[%clk 0:01:21]}  Qb5 {[%clk 0:01:30]} 28. Ng4 {[%clk 0:01:02]}  Bg7 {[%clk 0:01:24]} 29. Rxg7+ {[%clk 0:00:59]}  Kxg7 {[%clk 0:01:23]} 30. Qc3+ {[%clk 0:01:00]}  Kg8 {[%clk 0:01:20]} 31. Qf6 {[%clk 0:01:01]}  Rh5 {[%clk 0:01:03]} 32. Qxe6+ {[%clk 0:01:01]}  Kh8 {[%clk 0:01:00]} 33. Qf6+ {[%clk 0:01:01]}  Kg8 {[%clk 0:01:00]} 34. Rd1 {[%clk 0:01:00]}  Qxa5 {[%clk 0:00:52]} 35. Qe6+ {[%clk 0:00:55]}  Kh8 {[%clk 0:00:52]} 36. Qf6+ {[%clk 0:00:49]}  Kg8 {[%clk 0:00:52]} 37. Qe7 {[%clk 0:00:50]}  c4 {[%clk 0:00:43]} 38. Nf6+ {[%clk 0:00:47]}  Kh8 {[%clk 0:00:44]} 39. Nxh5 {[%clk 0:00:47]}  gxh5 {[%clk 0:00:39]} 40. Qf6+ {[%clk 0:00:44]}  Kg8 {[%clk 0:00:39]} 41. e5 {[%clk 0:00:45]}  Qc5+ {[%clk 0:00:33]} 42. Kh2 {[%clk 0:00:44]}  h4 {[%clk 0:00:28]} 43. Rd7 {[%clk 0:00:42]}  Qf8 {[%clk 0:00:16]} 44. Qxh4 {[%clk 0:00:27]}  Re8 {[%clk 0:00:14]} 1-0


[Site "https://www.chess.com"]

[Event "Titled Tuesday Blitz June 27 Early 2023"]
[White "Sevian, Samuel"]
[Black "Mamedov, Edgar"]
[WhiteFideId "2040506"]
[BlackFideId "13739980"]
[WhiteElo "3075"]
[BlackElo "2553"]
[Result "1-0"]
[Round "1"]
[TimeControl "180+2"]
[Date "2023.06.27"]
[WhiteClock "0:02:10"]
[BlackClock "0:00:01"]
[Board "5"]

1. d3 {[%clk 0:02:37]}  d5 {[%clk 0:02:57]} 2. Nf3 {[%clk 0:02:38]}  Nf6 {[%clk 0:02:56]} 3. c4 {[%clk 0:02:39]}  c6 {[%clk 0:02:53]} 4. e3 {[%clk 0:02:37]}  e6 {[%clk 0:02:49]} 5. Nc3 {[%clk 0:02:36]}  Nbd7 {[%clk 0:02:48]} 6. Qc2 {[%clk 0:02:35]}  Bd6 {[%clk 0:02:48]} 7. Be2 {[%clk 0:02:34]}  O-O {[%clk 0:02:47]} 8. O-O {[%clk 0:02:34]}  e5 {[%clk 0:02:45]} 9. b3 {[%clk 0:02:31]}  Re8 {[%clk 0:02:36]} 10. Bb2 {[%clk 0:02:30]}  Nf8 {[%clk 0:02:23]} 11. cxd5 {[%clk 0:02:26]}  cxd5 {[%clk 0:02:22]} 12. Nb5 {[%clk 0:02:26]}  Bb8 {[%clk 0:02:21]} 13. Rac1 {[%clk 0:02:25]}  Bg4 {[%clk 0:01:49]} 14. h3 {[%clk 0:02:23]}  Bh5 {[%clk 0:01:45]} 15. g4 {[%clk 0:02:23]}  Bg6 {[%clk 0:01:44]} 16. Nc7 {[%clk 0:02:23]}  Bxc7 {[%clk 0:01:42]} 17. Qxc7 {[%clk 0:02:23]}  e4 {[%clk 0:01:24]} 18. dxe4 {[%clk 0:02:22]}  dxe4 {[%clk 0:01:17]} 19. Nd4 {[%clk 0:02:23]}  Re7 {[%clk 0:01:11]} 20. Qxd8 {[%clk 0:02:22]}  Rxd8 {[%clk 0:01:10]} 21. Rfd1 {[%clk 0:02:22]}  a6 {[%clk 0:01:03]} 22. g5 {[%clk 0:02:16]}  Nd5 {[%clk 0:00:58]} 23. h4 {[%clk 0:02:15]}  h5 {[%clk 0:00:52]} 24. gxh6 {[%clk 0:02:15]}  gxh6 {[%clk 0:00:51]} 25. h5 {[%clk 0:02:15]}  Bh7 {[%clk 0:00:50]} 26. Kh2 {[%clk 0:02:16]}  f6 {[%clk 0:00:46]} 27. Rg1+ {[%clk 0:02:16]}  Kh8 {[%clk 0:00:46]} 28. Bc4 {[%clk 0:02:15]}  Re5 {[%clk 0:00:31]} 29. Be2 {[%clk 0:02:14]}  Nb4 {[%clk 0:00:29]} 30. Rc7 {[%clk 0:02:13]}  Nd3 {[%clk 0:00:26]} 31. Ba1 {[%clk 0:02:11]}  Nxf2 {[%clk 0:00:22]} 32. Rf7 {[%clk 0:02:11]}  Nd7 {[%clk 0:00:16]} 33. Rgg7 {[%clk 0:02:10]}  Bg8 {[%clk 0:00:15]} 34. Rxd7 {[%clk 0:02:10]}  Rxd7 {[%clk 0:00:11]} 35. Rxd7 {[%clk 0:02:11]}  Rg5 {[%clk 0:00:11]} 36. Rxb7 {[%clk 0:02:10]}  Ng4+ {[%clk 0:00:06]} 37. Bxg4 {[%clk 0:02:09]}  Rxg4 {[%clk 0:00:01]} 38. Nf5 {[%clk 0:02:10]} 1-0


[Site "https://www.chess.com"]

[Event "Titled Tuesday Blitz June 27 Early 2023"]
[White "Ambartsumova, Karina"]
[Black "Oparin, Grigoriy"]
[WhiteFideId "4166299"]
[BlackFideId "24125890"]
[WhiteElo "2553"]
[BlackElo "3046"]
[Result "1-0"]
[Round "1"]
[TimeControl "180+2"]
[Date "2023.06.27"]
[WhiteClock "0:00:10"]
[BlackClock "0:00:00"]
[Board "6"]

1. Nf3 {[%clk 0:02:58]}  c6 {[%clk 0:02:59]} 2. c4 {[%clk 0:02:57]}  d5 {[%clk 0:02:59]} 3. d4 {[%clk 0:02:54]}  e6 {[%clk 0:02:59]} 4. g3 {[%clk 0:02:52]}  Nf6 {[%clk 0:02:58]} 5. Bg2 {[%clk 0:02:52]}  dxc4 {[%clk 0:02:58]} 6. Ne5 {[%clk 0:02:52]}  Be7 {[%clk 0:02:34]} 7. Nc3 {[%clk 0:02:47]}  O-O {[%clk 0:02:31]} 8. Nxc4 {[%clk 0:02:39]}  b6 {[%clk 0:02:25]} 9. O-O {[%clk 0:02:37]}  Bb7 {[%clk 0:02:26]} 10. Ne5 {[%clk 0:02:33]}  Nd5 {[%clk 0:02:25]} 11. e4 {[%clk 0:02:26]}  Nxc3 {[%clk 0:02:24]} 12. bxc3 {[%clk 0:02:27]}  Nd7 {[%clk 0:02:25]} 13. Nd3 {[%clk 0:02:17]}  c5 {[%clk 0:02:23]} 14. d5 {[%clk 0:02:16]}  c4 {[%clk 0:02:06]} 15. Nf4 {[%clk 0:02:05]}  Nc5 {[%clk 0:01:53]} 16. Be3 {[%clk 0:01:55]}  e5 {[%clk 0:01:52]} 17. Ne2 {[%clk 0:01:50]}  Bd6 {[%clk 0:01:46]} 18. f4 {[%clk 0:01:43]}  Qe7 {[%clk 0:01:37]} 19. f5 {[%clk 0:01:41]}  f6 {[%clk 0:01:38]} 20. Kh1 {[%clk 0:01:40]}  b5 {[%clk 0:01:28]} 21. Bf3 {[%clk 0:01:38]}  a5 {[%clk 0:01:26]} 22. g4 {[%clk 0:01:28]}  b4 {[%clk 0:01:25]} 23. Rg1 {[%clk 0:01:26]}  Nd3 {[%clk 0:01:18]} 24. Qd2 {[%clk 0:00:58]}  Bc5 {[%clk 0:01:16]} 25. g5 {[%clk 0:00:57]}  Ra6 {[%clk 0:00:45]} 26. Rg2 {[%clk 0:00:55]}  fxg5 {[%clk 0:00:33]} 27. Bxg5 {[%clk 0:00:52]}  Qf7 {[%clk 0:00:33]} 28. Be3 {[%clk 0:00:45]}  Bxe3 {[%clk 0:00:30]} 29. Qxe3 {[%clk 0:00:46]}  Kh8 {[%clk 0:00:27]} 30. Rag1 {[%clk 0:00:45]}  Rg8 {[%clk 0:00:28]} 31. Ng3 {[%clk 0:00:30]}  Rh6 {[%clk 0:00:25]} 32. Ne2 {[%clk 0:00:26]}  Rh3 {[%clk 0:00:23]} 33. Rg3 {[%clk 0:00:23]}  Rxg3 {[%clk 0:00:24]} 34. Rxg3 {[%clk 0:00:24]}  Qc7 {[%clk 0:00:18]} 35. Qg5 {[%clk 0:00:17]}  Qd6 {[%clk 0:00:16]} 36. Bh5 {[%clk 0:00:14]}  Qf6 {[%clk 0:00:13]} 37. Qe3 {[%clk 0:00:12]}  Bc8 {[%clk 0:00:08]} 38. Kg2 {[%clk 0:00:11]}  Bd7 {[%clk 0:00:08]} 39. Bg6 {[%clk 0:00:11]}  h6 {[%clk 0:00:03]} 40. Rh3 {[%clk 0:00:11]}  Rc8 {[%clk 0:00:02]} 41. Rxh6+ {[%clk 0:00:11]}  Kg8 {[%clk 0:00:00]} 42. Rh3 {[%clk 0:00:10]} 1-0


[Site "https://www.chess.com"]

[Event "Titled Tuesday Blitz June 27 Early 2023"]
[White "Alinasab, Mobina"]
[Black "Lazavik, Denis"]
[WhiteFideId "12528897"]
[BlackFideId "13515110"]
[WhiteElo "2549"]
[BlackElo "3027"]
[Result "0-1"]
[Round "1"]
[TimeControl "180+2"]
[Date "2023.06.27"]
[WhiteClock "0:00:00"]
[BlackClock "0:00:54"]
[Board "8"]

1. e4 {[%clk 0:02:59]}  c5 {[%clk 0:03:00]} 2. Nf3 {[%clk 0:02:56]}  e6 {[%clk 0:03:00]} 3. d4 {[%clk 0:02:57]}  cxd4 {[%clk 0:03:01]} 4. Nxd4 {[%clk 0:02:58]}  Nc6 {[%clk 0:03:02]} 5. Nc3 {[%clk 0:02:58]}  Qc7 {[%clk 0:03:02]} 6. g3 {[%clk 0:02:58]}  a6 {[%clk 0:03:00]} 7. Bg2 {[%clk 0:02:58]}  Bc5 {[%clk 0:03:01]} 8. Nb3 {[%clk 0:02:55]}  Ba7 {[%clk 0:03:01]} 9. O-O {[%clk 0:02:56]}  Nf6 {[%clk 0:02:59]} 10. Re1 {[%clk 0:02:56]}  d6 {[%clk 0:02:56]} 11. Bf4 {[%clk 0:02:52]}  Ne5 {[%clk 0:02:55]} 12. Qe2 {[%clk 0:02:30]}  b5 {[%clk 0:02:51]} 13. a4 {[%clk 0:02:24]}  b4 {[%clk 0:02:50]} 14. Nd1 {[%clk 0:02:24]}  O-O {[%clk 0:02:50]} 15. Be3 {[%clk 0:02:18]}  a5 {[%clk 0:02:31]} 16. Bxa7 {[%clk 0:02:12]}  Rxa7 {[%clk 0:02:28]} 17. Ne3 {[%clk 0:02:11]}  Bb7 {[%clk 0:02:27]} 18. f3 {[%clk 0:02:01]}  Ba6 {[%clk 0:02:26]} 19. Qd2 {[%clk 0:02:01]}  Rd8 {[%clk 0:02:21]} 20. f4 {[%clk 0:02:01]}  Nc4 {[%clk 0:02:18]} 21. Nxc4 {[%clk 0:02:01]}  Bxc4 {[%clk 0:02:18]} 22. Nd4 {[%clk 0:01:59]}  Qb6 {[%clk 0:02:17]} 23. Kh1 {[%clk 0:01:41]}  Rc7 {[%clk 0:02:16]} 24. h3 {[%clk 0:01:35]}  h6 {[%clk 0:02:13]} 25. Kh2 {[%clk 0:01:34]}  Ba6 {[%clk 0:02:09]} 26. Rad1 {[%clk 0:01:22]}  Rdc8 {[%clk 0:02:08]} 27. e5 {[%clk 0:01:20]}  dxe5 {[%clk 0:02:08]} 28. fxe5 {[%clk 0:01:20]}  Nd7 {[%clk 0:02:01]} 29. Qf4 {[%clk 0:01:19]}  Nf8 {[%clk 0:01:54]} 30. Be4 {[%clk 0:01:14]}  Rd7 {[%clk 0:01:51]} 31. Nb3 {[%clk 0:00:18]}  Rcd8 {[%clk 0:01:45]} 32. Rxd7 {[%clk 0:00:17]}  Rxd7 {[%clk 0:01:46]} 33. Qe3 {[%clk 0:00:15]}  Qc7 {[%clk 0:01:43]} 34. Nd4 {[%clk 0:00:10]}  Bc4 {[%clk 0:01:18]} 35. c3 {[%clk 0:00:10]}  Qb6 {[%clk 0:01:09]} 36. Nf5 {[%clk 0:00:04]}  Qxe3 {[%clk 0:01:02]} 37. Nxe3 {[%clk 0:00:05]}  Rd2+ {[%clk 0:01:02]} 38. Kg1 {[%clk 0:00:05]}  Ba6 {[%clk 0:00:58]} 39. cxb4 {[%clk 0:00:05]}  axb4 {[%clk 0:00:59]} 40. b3 {[%clk 0:00:05]}  Nd7 {[%clk 0:00:55]} 41. Ng4 {[%clk 0:00:00]}  Nc5 {[%clk 0:00:54]} 0-1


[Site "https://www.chess.com"]

[Event "Titled Tuesday Blitz June 27 Early 2023"]
[White "Chor, Kevin"]
[Black "Tabatabaei, M. Amin"]
[WhiteFideId "2090740"]
[BlackFideId "12521213"]
[WhiteElo "2535"]
[BlackElo "2995"]
[Result "0-1"]
[Round "1"]
[TimeControl "180+2"]
[Date "2023.06.27"]
[WhiteClock "0:00:04"]
[BlackClock "0:00:36"]
[Board "14"]

1. e4 {[%clk 0:02:54]}  c5 {[%clk 0:02:47]} 2. Nf3 {[%clk 0:02:53]}  d6 {[%clk 0:02:47]} 3. d4 {[%clk 0:02:53]}  cxd4 {[%clk 0:02:48]} 4. Nxd4 {[%clk 0:02:53]}  Nf6 {[%clk 0:02:49]} 5. Nc3 {[%clk 0:02:51]}  a6 {[%clk 0:02:49]} 6. Be2 {[%clk 0:02:51]}  e5 {[%clk 0:02:49]} 7. Nb3 {[%clk 0:02:51]}  Be7 {[%clk 0:02:50]} 8. Be3 {[%clk 0:02:50]}  Be6 {[%clk 0:02:50]} 9. Nd5 {[%clk 0:02:50]}  Nbd7 {[%clk 0:02:48]} 10. Qd3 {[%clk 0:02:50]}  O-O {[%clk 0:02:47]} 11. O-O {[%clk 0:02:50]}  Bxd5 {[%clk 0:02:47]} 12. exd5 {[%clk 0:02:50]}  Rc8 {[%clk 0:02:47]} 13. c4 {[%clk 0:02:50]}  b6 {[%clk 0:02:42]} 14. Nd2 {[%clk 0:02:40]}  a5 {[%clk 0:02:42]} 15. b3 {[%clk 0:02:31]}  Ne8 {[%clk 0:02:41]} 16. a3 {[%clk 0:02:24]}  f5 {[%clk 0:02:34]} 17. f3 {[%clk 0:02:24]}  Bg5 {[%clk 0:02:32]} 18. b4 {[%clk 0:02:12]}  Bxe3+ {[%clk 0:02:06]} 19. Qxe3 {[%clk 0:02:12]}  Nef6 {[%clk 0:02:03]} 20. Rac1 {[%clk 0:02:01]}  Qc7 {[%clk 0:02:02]} 21. Nb3 {[%clk 0:01:57]}  axb4 {[%clk 0:02:00]} 22. axb4 {[%clk 0:01:58]}  f4 {[%clk 0:01:53]} 23. Qd3 {[%clk 0:01:51]}  Ra8 {[%clk 0:01:50]} 24. Ra1 {[%clk 0:01:51]}  g6 {[%clk 0:01:38]} 25. Rfc1 {[%clk 0:01:44]}  Qb7 {[%clk 0:01:34]} 26. Qc3 {[%clk 0:01:20]}  Rfc8 {[%clk 0:01:26]} 27. Bd3 {[%clk 0:01:11]}  Nxd5 {[%clk 0:01:21]} 28. Qd2 {[%clk 0:01:03]}  Rxa1 {[%clk 0:01:20]} 29. Rxa1 {[%clk 0:01:00]}  Ne3 {[%clk 0:01:17]} 30. Rc1 {[%clk 0:00:49]}  Nf6 {[%clk 0:01:14]} 31. Be2 {[%clk 0:00:37]}  Qe7 {[%clk 0:01:09]} 32. Qd3 {[%clk 0:00:30]}  Kg7 {[%clk 0:01:08]} 33. Nd2 {[%clk 0:00:29]}  d5 {[%clk 0:01:07]} 34. Rc3 {[%clk 0:00:20]}  Qxb4 {[%clk 0:01:05]} 35. Rb3 {[%clk 0:00:21]}  dxc4 {[%clk 0:01:00]} 36. Rxb4 {[%clk 0:00:17]}  cxd3 {[%clk 0:01:00]} 37. Bxd3 {[%clk 0:00:18]}  Rc1+ {[%clk 0:00:42]} 38. Kf2 {[%clk 0:00:17]}  Nfd5 {[%clk 0:00:43]} 39. Re4 {[%clk 0:00:16]}  Nd1+ {[%clk 0:00:42]} 40. Kf1 {[%clk 0:00:11]}  N5e3+ {[%clk 0:00:41]} 41. Ke2 {[%clk 0:00:08]}  Nc3+ {[%clk 0:00:42]} 42. Kf2 {[%clk 0:00:08]}  Nxe4+ {[%clk 0:00:42]} 43. Nxe4 {[%clk 0:00:04]}  Nd1+ {[%clk 0:00:36]} 0-1


[Site "https://www.chess.com"]

[Event "Titled Tuesday Blitz June 27 Early 2023"]
[White "Paravyan, David"]
[Black "Thecourseoisildur"]
[WhiteFideId "4194985"]
[WhiteElo "2993"]
[BlackElo "2535"]
[Result "1-0"]
[Round "1"]
[TimeControl "180+2"]
[Date "2023.06.27"]
[WhiteClock "0:01:17"]
[BlackClock "0:00:00"]
[Board "15"]

1. e4 {[%clk 0:02:53]}  c5 {[%clk 0:02:56]} 2. Nf3 {[%clk 0:02:52]}  d6 {[%clk 0:02:52]} 3. d4 {[%clk 0:02:53]}  cxd4 {[%clk 0:02:52]} 4. Nxd4 {[%clk 0:02:54]}  Nf6 {[%clk 0:02:52]} 5. Nc3 {[%clk 0:02:54]}  a6 {[%clk 0:02:52]} 6. f3 {[%clk 0:02:55]}  e5 {[%clk 0:02:52]} 7. Nb3 {[%clk 0:02:55]}  Be6 {[%clk 0:02:51]} 8. Be3 {[%clk 0:02:55]}  h5 {[%clk 0:02:52]} 9. Nd5 {[%clk 0:02:49]}  Bxd5 {[%clk 0:02:50]} 10. exd5 {[%clk 0:02:49]}  Nbd7 {[%clk 0:02:51]} 11. Qd2 {[%clk 0:02:49]}  g6 {[%clk 0:02:49]} 12. O-O-O {[%clk 0:02:48]}  Bg7 {[%clk 0:02:45]} 13. Kb1 {[%clk 0:02:48]}  O-O {[%clk 0:02:45]} 14. h4 {[%clk 0:02:39]}  Qc7 {[%clk 0:02:40]} 15. g4 {[%clk 0:02:33]}  Rac8 {[%clk 0:01:31]} 16. g5 {[%clk 0:02:30]}  Nh7 {[%clk 0:01:23]} 17. Bh3 {[%clk 0:02:27]}  Rfe8 {[%clk 0:01:22]} 18. c4 {[%clk 0:02:24]}  b6 {[%clk 0:01:15]} 19. Rc1 {[%clk 0:02:21]}  Nhf8 {[%clk 0:01:09]} 20. Rhf1 {[%clk 0:02:10]}  a5 {[%clk 0:01:06]} 21. Na1 {[%clk 0:02:01]}  Qb7 {[%clk 0:01:00]} 22. Qe2 {[%clk 0:01:57]}  Rb8 {[%clk 0:00:36]} 23. Nc2 {[%clk 0:01:39]}  Nc5 {[%clk 0:00:31]} 24. Na3 {[%clk 0:01:38]}  e4 {[%clk 0:00:26]} 25. f4 {[%clk 0:01:37]}  Nd3 {[%clk 0:00:21]} 26. Rc2 {[%clk 0:01:37]}  Qe7 {[%clk 0:00:07]} 27. Nb5 {[%clk 0:01:36]}  Rbc8 {[%clk 0:00:08]} 28. f5 {[%clk 0:01:33]}  gxf5 {[%clk 0:00:04]} 29. Bxf5 {[%clk 0:01:33]}  Ng6 {[%clk 0:00:02]} 30. Nd4 {[%clk 0:01:27]}  Qe5 {[%clk 0:00:00]} 31. Qxh5 {[%clk 0:01:17]} 1-0


[Site "https://www.chess.com"]